bitfinex/quotes_BTCUSD_20210101
["timestamp","ask_amount","ask_price","bid_price","bid_amount"]
[1609481050726,0.79098649,29241.0,29240.0,0.05959931]
[1609481052124,0.79098649,29241.0,29240.0,0.57189931]
[1609481052324,0.79098649,29241.0,29240.0,0.74815477]
[1609481052524,0.79098649,29241.0,29240.0,0.57189931]
[1609481053931,0.79098649,29241.0,29240.0,0.74815477]
[1609481054126,0.79098649,29241.0,29240.0,0.57189931]
[1609481054331,0.79098649,29241.0,29240.0,0.74815477]
[1609481054530,0.79098649,29241.0,29240.0,1.74815477]
[1609481054731,0.79098649,29241.0,29240.0,1.57189931]
[1609481055975,0.79098649,29241.0,29240.0,1.76372902]
[1609481056578,0.79098649,29241.0,29240.0,1.84602136]
[1609481056774,0.79098649,29241.0,29240.0,2.02227682]
[1609481056974,0.79098649,29241.0,29240.0,1.84602136]
[1609481057173,0.79098649,29241.0,29240.0,1.82642137]
[1609481057579,0.79098649,29241.0,29240.0,0.82642137]
[1609481057775,0.49098649,29241.0,29240.0,0.82642137]
[1609481057978,0.49098649,29241.0,29240.0,0.74412903]
[1609481059578,0.49098649,29241.0,29240.0,1.85926903]
[1609481059778,0.49098649,29241.0,29240.0,2.15926903]
[1609481060676,0.49098649,29241.0,29240.0,1.85926903]
[1609481065905,0.49098649,29241.0,29240.0,1.95926903]
[1609481066506,0.49098649,29241.0,29240.0,2.15926903]
[1609481067627,0.49098649,29241.0,29240.0,1.95926903]
[1609481068325,0.49098649,29241.0,29240.0,2.15926903]
[1609481068926,0.49098649,29241.0,29240.0,1.95926903]
[1609481069134,1.4513194,29241.0,29240.0,1.74412903]
[1609481069333,1.6663194,29241.0,29240.0,1.74412903]
[1609481070029,0.70598649,29241.0,29240.0,1.74412903]
[1609481070223,0.49098649,29241.0,29240.0,1.74412903]
[1609481070629,0.49098649,29241.0,29240.0,0.74412903]
[1609481071132,1.89396541,29241.0,29240.0,0.74412903]
[1609481071334,2.17396541,29241.0,29240.0,0.74412903]
[1609481073709,2.17396541,29241.0,29240.0,0.82661744]
[1609481074210,2.17396541,29241.0,29240.0,0.74412903]
[1609481079230,0.77098649,29241.0,29240.0,0.74412903]
[1609481079430,0.49098649,29241.0,29240.0,0.74412903]
[1609481080130,0.85323249,29241.0,29240.0,0.74412903]
[1609481080333,1.89396541,29241.0,29240.0,0.74412903]
[1609481080535,1.2136325,29241.0,29240.0,0.74412903]
[1609481080729,1.2036325,29241.0,29240.0,0.74412903]
[1609481081131,2.15396541,29241.0,29240.0,0.74412903]
[1609481082031,1.11323249,29241.0,29240.0,0.74412903]
[1609481082338,0.47098649,29241.0,29240.0,0.74412903]
[1609481084753,0.47098649,29241.0,29240.0,1.04207903]
[1609481085852,0.46598649,29241.0,29240.0,1.04207903]
[1609481086755,0.46598649,29241.0,29240.0,1.14207903]
[1609481087853,0.46598649,29241.0,29240.0,0.97362903]
[1609481088351,0.46598649,29241.0,29240.0,0.84412903]
[1609481088555,0.46598649,29241.0,29240.0,0.74412903]
[1609481089461,0.46598649,29241.0,29240.0,1.02161903]
[1609481089658,0.46598649,29241.0,29240.0,2.02978932]
[1609481089966,0.46598649,29241.0,29240.0,2.6789809]
[1609481090356,0.46598649,29241.0,29240.0,4.9789809]
[1609481090857,0.46598649,29241.0,29240.0,5.49432766]
[1609481091085,0.46598649,29241.0,29240.0,5.37092846]
[1609481091286,0.46598649,29241.0,29240.0,2.894673]
[1609481092291,0.46598649,29241.0,29240.0,2.5555817]
[1609481093190,0.46598649,29241.0,29240.0,3.1555817]
[1609481093388,0.46598649,29241.0,29240.0,3.27871881]
[1609481093590,0.46598649,29241.0,29240.0,3.76786722]
[1609481093891,0.46598649,29241.0,29240.0,2.99161176]
[1609481094292,0.46598649,29241.0,29240.0,6.03746721]
[1609481094496,0.46598649,29241.0,29240.0,5.72457426]
[1609481094690,0.33761886,29241.0,29240.0,5.72457426]
[1609481094897,0.32056013,29241.0,29240.0,6.31415667]
[1609481095295,0.32056013,29241.0,29240.0,5.91415667]
[1609481096096,0.32056013,29241.0,29240.0,6.03713449]
[1609481097311,0.00032742,29245.0,29241.0,3.45]
[1609481097511,0.02032742,29246.0,29243.0,0.0819314]
[1609481097812,0.02032742,29246.0,29244.0,0.01959999]
[1609481098011,0.02032742,29246.0,29245.0,3.61809802]
[1609481098210,0.02,29246.0,29245.0,4.19809802]
[1609481098607,0.02,29246.0,29245.0,5.19809802]
[1609481101818,0.2504,29250.0,29247.0,3.45]
[1609481102019,0.2468,29250.0,29248.0,1.0826497]
[1609481102222,0.2434,29250.0,29249.0,0.17625546]
[1609481102440,0.2434,29250.0,29249.0,4.03]
[1609481102642,0.2434,29250.0,29249.0,4.41507881]
[1609481102845,0.2434,29250.0,29249.0,5.37966045]
[1609481103239,0.2434,29250.0,29249.0,5.55591591]
[1609481104382,0.2434,29250.0,29249.0,5.515006]
[1609481105181,0.2434,29250.0,29249.0,2.065006]
[1609481105382,0.2434,29250.0,29249.0,1.9241689]
[1609481105585,0.2384,29250.0,29249.0,1.74791344]
[1609481105981,0.2334,29250.0,29249.0,1.74791344]
[1609481106223,0.2334,29250.0,29249.0,2.43878107]
[1609481106420,0.2334,29250.0,29249.0,1.85878107]
[1609481106620,0.2334,29250.0,29249.0,1.20878107]
[1609481106825,0.2334,29250.0,29249.0,1.0]
[1609481107021,0.2334,29250.0,29249.0,3.65]
[1609481107222,0.2334,29250.0,29249.0,4.23]
[1609481107523,0.2334,29250.0,29249.0,4.40625546]
[1609481108522,0.2334,29250.0,29249.0,1.75625546]
[1609481108725,0.2334,29250.0,29249.0,1.58]
[1609481109124,0.2334,29250.0,29249.0,1.0]
[1609481109722,0.2334,29250.0,29249.0,1.02486665]
[1609481111028,0.2334,29250.0,29249.0,2.52486665]
[1609481111226,0.2334,29250.0,29249.0,2.74486665]
[1609481111426,0.2334,29250.0,29249.0,1.24486665]
[1609481112060,0.2334,29250.0,29249.0,2.19486665]
[1609481112263,0.2334,29250.0,29249.0,2.36533665]
[1609481113062,0.2334,29250.0,29249.0,1.41533665]
[1609481113463,0.2334,29250.0,29249.0,1.24486665]
[1609481115165,0.2334,29250.0,29249.0,1.02486665]
[1609481116095,0.2334,29250.0,29249.0,1.77486665]
[1609481116497,0.2334,29250.0,29249.0,1.02486665]
[1609481116998,0.2334,29250.0,29249.0,1.82486665]
[1609481117294,0.2334,29250.0,29249.0,1.02486665]
[1609481117694,0.97413355,29250.0,29249.0,1.02486665]
[1609481117900,0.97413355,29250.0,29249.0,1.57486665]
[1609481118620,0.97413355,29250.0,29249.0,1.02486665]
[1609481119019,0.97413355,29250.0,29249.0,1.23310391]
[1609481119422,0.97413355,29250.0,29249.0,1.19228062]
[1609481119615,1.14413355,29250.0,29249.0,1.19228062]
[1609481119821,0.97413355,29250.0,29249.0,1.19228062]
[1609481120118,0.97413355,29250.0,29249.0,2.49228062]
[1609481121148,0.97413355,29250.0,29249.0,1.19228062]
[1609481121849,0.97413355,29250.0,29249.0,1.74228062]
[1609481122052,0.97413355,29250.0,29249.0,2.15728062]
[1609481122250,0.0008,29252.0,29250.0,4.89650062]
[1609481122251,0.00060996,29252.0,29250.0,4.89650062]
[1609481122461,0.0006,29253.0,29252.0,4.79650062]
[1609481122462,0.0004,29253.0,29252.0,4.79650062]
[1609481122856,0.0004,29253.0,29252.0,4.96391578]
[1609481123048,0.0004,29253.0,29252.0,5.54391578]
[1609481123253,0.0004,29253.0,29252.0,2.31639896]
[1609481123661,1.20884078,29259.0,29253.0,3.79650062]
[1609481123861,0.23850787,29259.0,29255.0,1.01959999]
[1609481124058,0.0006,29259.0,29256.0,0.04080923]
[1609481124259,0.0006,29259.0,29255.0,1.06039858]
[1609481124455,0.0006,29259.0,29256.0,0.6886]
[1609481124654,0.0006,29259.0,29257.0,0.17]
[1609481124964,0.0008,29267.0,29258.0,0.01459999]
[1609481124965,1.60273291,29267.0,29258.0,0.01459999]
[1609481125160,1.32257891,29266.0,29258.0,0.01459999]
[1609481125354,0.96033291,29265.0,29258.0,0.01459999]
[1609481125553,0.34,29264.0,29258.0,0.01459999]
[1609481125760,0.96033291,29263.0,29258.0,0.01459999]
[1609481125955,0.95533291,29263.0,29258.0,0.01459999]
[1609481127074,0.95033291,29263.0,29261.0,0.6826]
[1609481127871,0.94033291,29263.0,29261.0,0.6826]
[1609481128076,0.14,29262.0,29261.0,0.6826]
[1609481128281,1.08033291,29262.0,29261.0,0.6826]
[1609481128475,1.44257891,29262.0,29261.0,0.6826]
[1609481128677,1.08033291,29262.0,29261.0,0.6826]
[1609481128980,0.502246,29262.0,29261.0,0.6826]
[1609481129179,0.362246,29262.0,29261.0,0.6826]
[1609481129783,0.00030903,29263.0,29261.0,0.6826]
[1609481129984,0.362246,29262.0,29261.0,0.6826]
[1609481130283,0.93533194,29262.0,29261.0,0.65159]
[1609481130481,0.93457194,29262.0,29261.0,0.61736]
[1609481130781,0.49006798,29262.0,29261.0,0.58313]
[1609481131083,0.65830798,29262.0,29261.0,0.5489]
[1609481131380,0.65716798,29262.0,29261.0,0.50331]
[1609481131679,0.64969798,29262.0,29261.0,0.50331]
[1609481132080,0.64855798,29262.0,29261.0,0.50331]
[1609481132275,0.83983398,29262.0,29261.0,0.50331]
[1609481132698,1.77440592,29262.0,29261.0,0.50331]
[1609481132907,1.77368592,29262.0,29261.0,0.50331]
[1609481133115,2.29346404,29262.0,29258.0,0.04082436]
[1609481133408,3.761996,29259.0,29258.0,0.04082436]
[1609481133677,4.69656794,29259.0,29255.0,0.04087845]
[1609481133875,0.362226,29256.0,29254.0,0.04090291]
[1609481134072,2.18457194,29255.0,29254.0,0.04090291]
[1609481134274,2.98679794,29255.0,29252.0,0.20855483]
[1609481134465,1.29679794,29254.0,29252.0,0.20855483]
[1609481134675,0.362226,29254.0,29253.0,0.0409173]
[1609481134868,1.60679794,29254.0,29253.0,0.0409173]
[1609481135068,1.29679794,29254.0,29253.0,0.0409173]
[1609481135271,1.29679794,29254.0,29252.0,0.04092158]
[1609481135469,1.29710003,29254.0,29253.0,0.02483726]
[1609481135667,1.54210003,29254.0,29253.0,0.02483726]
[1609481135968,0.607226,29254.0,29253.0,0.02483726]
[1609481136200,1.29679794,29254.0,29253.0,0.02483726]
[1609481137474,0.00030209,29255.0,29253.0,0.03966816]
[1609481137674,0.17030209,29257.0,29253.0,0.05426815]
[1609481138497,0.362226,29256.0,29253.0,0.08054926]
[1609481138693,0.36252809,29256.0,29253.0,0.08054926]
[1609481139598,0.36252809,29256.0,29253.0,0.03966816]
[1609481139996,0.36252809,29256.0,29253.0,0.08055555]
[1609481140496,0.36252809,29256.0,29253.0,0.03966816]
[1609481141298,0.36252809,29256.0,29253.0,0.08055664]
[1609481141697,0.00030209,29256.0,29253.0,0.08055664]
[1609481141906,0.362226,29255.0,29253.0,0.08055664]
[1609481142412,0.362226,29256.0,29253.0,0.03966816]
[1609481143007,0.36252809,29256.0,29253.0,0.03966816]
[1609481144618,1.29710003,29256.0,29253.0,0.03966816]
[1609481144814,0.22,29255.0,29253.0,0.03966816]
[1609481145013,1.912226,29254.0,29253.0,0.03966816]
[1609481145818,0.362226,29254.0,29253.0,0.03966816]
[1609481146020,1.29679794,29254.0,29253.0,0.03966816]
[1609481146217,1.48679794,29254.0,29253.0,0.03966816]
[1609481146717,1.452226,29254.0,29253.0,0.03966816]
[1609481146919,0.552226,29254.0,29253.0,0.03966816]
[1609481147114,1.29679794,29254.0,29253.0,0.03966816]
[1609481147718,0.362226,29254.0,29253.0,0.05426815]
[1609481148219,0.00030209,29256.0,29253.0,0.05426815]
[1609481148417,0.362226,29255.0,29253.0,0.05426815]
[1609481148701,0.17030209,29257.0,29253.0,0.05426815]
[1609481148888,0.36252809,29256.0,29253.0,0.05426815]
[1609481149489,0.36252809,29256.0,29253.0,0.03966816]
[1609481149691,1.29710003,29256.0,29254.0,0.01459999]
[1609481149892,1.17,29255.0,29254.0,0.01459999]
[1609481150088,1.532226,29255.0,29254.0,0.01459999]
[1609481150296,0.567226,29255.0,29254.0,0.01459999]
[1609481152594,0.362226,29255.0,29254.0,0.01459999]
[1609481152793,0.17030209,29257.0,29254.0,0.01459999]
[1609481153109,0.17030209,29257.0,29255.0,0.6826]
[1609481153303,0.00030209,29257.0,29255.0,0.6826]
[1609481153505,0.463,29258.0,29255.0,0.6826]
[1609481154518,0.463,29258.0,29255.0,0.72339301]
[1609481156813,1.29679794,29257.0,29255.0,0.72339301]
[1609481157010,1.19457194,29256.0,29255.0,0.72339301]
[1609481157207,1.55679794,29256.0,29255.0,0.04079301]
[1609481157416,1.55679794,29256.0,29254.0,0.04083459]
[1609481157716,0.592226,29255.0,29253.0,0.08050887]
[1609481157906,0.23030209,29255.0,29253.0,0.08050887]
[1609481158114,0.00030209,29255.0,29254.0,0.04083204]
[1609481158507,0.463,29258.0,29254.0,0.04083204]
[1609481158733,0.362226,29256.0,29254.0,0.2080225]
[1609481158932,0.19,29255.0,29254.0,0.2080225]
[1609481159138,0.00030209,29256.0,29254.0,0.52669999]
[1609481159539,0.463,29258.0,29254.0,0.52669999]
[1609481160833,0.00030209,29257.0,29254.0,0.52669999]
[1609481161236,0.00030209,29257.0,29254.0,0.56755475]
[1609481161533,0.463,29258.0,29254.0,0.56755475]
[1609481161836,1.39757194,29258.0,29254.0,0.56755475]
[1609481162036,0.00030209,29257.0,29254.0,0.56755475]
[1609481162238,0.00030209,29257.0,29255.0,0.20821038]
[1609481162537,0.68600209,29263.0,29255.0,0.20821038]
[1609481162733,0.362226,29260.0,29255.0,0.20821038]
[1609481162941,0.362226,29258.0,29256.0,0.04085961]
[1609481163136,1.29679794,29258.0,29256.0,0.04085961]
[1609481163538,1.29710003,29258.0,29256.0,0.04085961]
[1609481163757,0.22,29257.0,29256.0,0.04085961]
[1609481163956,0.36252809,29258.0,29256.0,0.04085961]
[1609481164160,0.36252809,29258.0,29255.0,0.2082037]
[1609481164757,0.36252809,29258.0,29256.0,0.01482965]
[1609481165257,0.00030209,29258.0,29256.0,0.01482965]
[1609481165462,0.19,29259.0,29256.0,0.05568527]
[1609481165657,0.19,29259.0,29256.0,0.22292479]
[1609481165962,0.362226,29260.0,29256.0,0.05568527]
[1609481166597,0.362226,29260.0,29258.0,0.512]
[1609481168895,1.29679794,29260.0,29258.0,0.512]
[1609481169098,0.84,29259.0,29258.0,0.512]
[1609481169399,1.202226,29259.0,29258.0,0.512]
[1609481169796,2.13679794,29259.0,29258.0,0.512]
[1609481169997,1.48679794,29259.0,29258.0,0.512]
[1609481171000,1.48679794,29259.0,29258.0,0.52682836]
[1609481172823,1.48531365,29259.0,29258.0,0.52682836]
[1609481173420,1.48531365,29259.0,29258.0,0.01482836]
[1609481173624,1.71968365,29259.0,29258.0,0.01482836]
[1609481174427,1.75315177,29259.0,29258.0,0.01482836]
[1609481175034,1.95315177,29259.0,29258.0,0.01482836]
[1609481175227,2.20815177,29259.0,29258.0,0.01482836]
[1609481176634,2.00815177,29259.0,29258.0,0.01482836]
[1609481179883,1.99815177,29259.0,29258.0,0.01482836]
[1609481181532,2.19815177,29259.0,29258.0,0.01482836]
[1609481181933,1.99815177,29259.0,29258.0,0.01527558]
[1609481182431,2.19815177,29259.0,29258.0,0.01527558]
[1609481186676,2.18315177,29259.0,29258.0,0.01527558]
[1609481190389,3.29518172,29259.0,29258.0,0.01527558]
[1609481190839,2.26855178,29259.0,29258.0,0.01527558]
[1609481191025,2.5893548,29259.0,29258.0,0.01527558]
[1609481191325,3.3008023,29259.0,29246.0,0.04051153]
[1609481191526,0.562226,29255.0,29246.0,0.04051153]
[1609481191829,0.362226,29247.0,29245.0,0.20627176]
[1609481192028,0.362226,29246.0,29245.0,0.04056996]
[1609481193921,0.362226,29246.0,29244.0,0.04060641]
[1609481194123,0.362226,29245.0,29244.0,0.04060641]
[1609481194329,0.580366,29245.0,29244.0,0.04060641]
[1609481196020,0.565366,29245.0,29244.0,0.04060641]
[1609481197054,0.565366,29245.0,29244.0,0.05247698]
[1609481197456,0.565366,29245.0,29244.0,0.24358514]
[1609481199960,0.565366,29245.0,29244.0,0.20297873]
[1609481201863,0.555366,29245.0,29244.0,0.20297873]
[1609481204485,0.555366,29245.0,29244.0,0.28421358]
[1609481205384,0.550366,29245.0,29244.0,0.28421358]
[1609481208864,0.695366,29245.0,29244.0,0.28421358]
[1609481210760,0.685366,29245.0,29244.0,0.28421358]
[1609481211895,0.685366,29245.0,29244.0,0.20297873]
[1609481219625,0.77076601,29245.0,29244.0,0.20297873]
[1609481221332,0.77076601,29245.0,29244.0,0.32495254]
[1609481224002,0.77076601,29245.0,29244.0,0.20297873]
[1609481224201,0.77076601,29245.0,29244.0,0.32495041]
[1609481224400,0.685366,29245.0,29244.0,0.32495041]
[1609481226201,0.467226,29245.0,29244.0,0.32495041]
[1609481226865,0.467226,29245.0,29244.0,0.49037847]
[1609481227069,0.6909,29249.0,29244.0,1.17500047]
[1609481227274,0.28160182,29255.0,29245.0,0.31060406]
[1609481227577,0.28160182,29255.0,29248.0,0.045162]
[1609481227776,0.28160182,29255.0,29247.0,0.08127733]
[1609481227777,0.28160182,29255.0,29253.0,0.04059694]
[1609481227968,0.4511,29259.0,29253.0,0.05519693]
[1609481227969,0.362232,29254.0,29253.0,0.05519693]
[1609481228178,0.14,29254.0,29253.0,0.14086029]
[1609481228372,0.362232,29257.0,29254.0,0.5121]
[1609481228566,0.45140182,29259.0,29254.0,0.5121]
[1609481228764,0.16,29258.0,29254.0,0.5121]
[1609481228974,0.16030182,29258.0,29255.0,0.04514]
[1609481229271,0.00030182,29258.0,29254.0,0.5121]
[1609481229465,0.00030182,29258.0,29255.0,0.045138]
[1609481229667,0.362232,29257.0,29254.0,0.5121]
[1609481229871,0.4511,29259.0,29256.0,0.04055542]
[1609481230067,0.36253382,29258.0,29256.0,0.04055542]
[1609481230904,0.36253382,29258.0,29255.0,0.05236515]
[1609481231401,0.36253382,29258.0,29255.0,0.0118641]
[1609481232500,0.362232,29256.0,29255.0,0.0118641]
[1609481232696,0.362232,29257.0,29255.0,0.0118641]
[1609481232897,0.362232,29256.0,29255.0,0.0118641]
[1609481236018,0.362232,29256.0,29255.0,0.01219058]
[1609481237518,0.607232,29256.0,29255.0,0.01219058]
[1609481237921,1.74180394,29256.0,29255.0,0.01219058]
[1609481238228,1.57527206,29256.0,29255.0,0.01219058]
[1609481238430,1.99027206,29256.0,29255.0,0.01219058]
[1609481238821,1.79027206,29256.0,29255.0,0.01219058]
[1609481239054,3.14051531,29256.0,29255.0,0.01219058]
[1609481239253,3.34051531,29256.0,29255.0,0.01219058]
[1609481239445,3.01971229,29256.0,29255.0,0.01219058]
[1609481239844,3.76251229,29256.0,29255.0,0.01219058]
[1609481240348,4.02974228,29256.0,29255.0,0.01219058]
[1609481240541,4.3505453,29256.0,29255.0,0.01219058]
[1609481240747,4.02974228,29256.0,29255.0,0.01219058]
[1609481241045,4.3505453,29256.0,29255.0,0.01219058]
[1609481241343,2.73307206,29256.0,29255.0,0.01219058]
[1609481241606,3.0002913,29256.0,29255.0,0.01219058]
[1609481242402,2.06571936,29256.0,29255.0,0.01219058]
[1609481242600,3.0002913,29256.0,29255.0,0.01219058]
[1609481242800,2.9952913,29256.0,29255.0,0.01219058]
[1609481243500,2.06071936,29256.0,29255.0,0.01219058]
[1609481243699,2.05571936,29256.0,29255.0,0.01219058]
[1609481243903,2.14111937,29256.0,29255.0,0.01219058]
[1609481244101,3.07569131,29256.0,29255.0,0.01219058]
[1609481244305,2.13611937,29256.0,29255.0,0.01219058]
[1609481244504,1.83543201,29256.0,29255.0,0.01219058]
[1609481245530,1.86890013,29256.0,29255.0,0.01219058]
[1609481246530,1.63543201,29256.0,29255.0,0.01219058]
[1609481249040,2.57000395,29256.0,29255.0,0.01219058]
[1609481249430,2.60347207,29256.0,29255.0,0.01219058]
[1609481250854,2.80347207,29256.0,29255.0,0.01219058]
[1609481251057,2.60347207,29256.0,29255.0,0.01219058]
[1609481251553,2.80347207,29256.0,29255.0,0.01219058]
[1609481251853,2.90727676,29256.0,29255.0,0.01219058]
[1609481252456,2.80347207,29256.0,29255.0,0.01219058]
[1609481253993,1.66890013,29256.0,29255.0,0.01219058]
[1609481254990,1.63543201,29256.0,29255.0,0.01219058]
[1609481255188,1.66890013,29256.0,29255.0,0.01219058]
[1609481257135,2.6997455,29256.0,29255.0,0.01219058]
[1609481258841,3.63431744,29256.0,29255.0,0.01043058]
[1609481259038,2.6997455,29256.0,29255.0,0.01043058]
[1609481259238,3.63431744,29256.0,29255.0,0.01043058]
[1609481260772,3.60084932,29256.0,29255.0,0.01043058]
[1609481261379,3.63431744,29256.0,29255.0,0.01043058]
[1609481261575,3.83431744,29256.0,29255.0,0.01043058]
[1609481262675,3.83431744,29256.0,29255.0,0.00645058]
[1609481267805,3.83431744,29256.0,29255.0,0.01104298]
[1609481268914,3.63431744,29256.0,29255.0,0.01104298]
[1609481269141,3.83431744,29256.0,29255.0,0.01104298]
[1609481270340,3.60084932,29256.0,29255.0,0.01104298]
[1609481270741,3.63431744,29256.0,29255.0,0.01104298]
[1609481272780,2.6997455,29256.0,29255.0,0.01104298]
[1609481272984,3.83431744,29256.0,29255.0,0.01104298]
[1609481273387,1.13457194,29255.0,29249.0,0.04052789]
[1609481273583,0.362232,29251.0,29249.0,0.04052789]
[1609481273786,2.29762701,29250.0,29249.0,0.04052789]
[1609481274084,2.69262701,29250.0,29249.0,0.04052789]
[1609481274481,0.84262701,29250.0,29249.0,0.04052789]
[1609481275181,1.79262701,29250.0,29249.0,0.04052789]
[1609481275480,1.79262701,29250.0,29249.0,0.06540007]
[1609481275680,0.84262701,29250.0,29249.0,0.06540007]
[1609481275880,0.84262701,29250.0,29249.0,0.06040007]
[1609481276082,0.84262701,29250.0,29249.0,0.22620058]
[1609481277215,2.19262701,29250.0,29249.0,0.22620058]
[1609481277419,0.84262701,29250.0,29249.0,0.02487218]
[1609481279021,1.04262701,29250.0,29249.0,0.02487218]
[1609481279221,1.79262701,29250.0,29249.0,0.02487218]
[1609481279418,1.59262701,29250.0,29249.0,0.02487218]
[1609481280623,0.84262701,29250.0,29249.0,0.02487218]
[1609481281221,1.69262701,29250.0,29249.0,0.02487218]
[1609481282123,0.84262701,29250.0,29249.0,0.02487218]
[1609481282529,0.757227,29250.0,29249.0,0.09030024]
[1609481282730,0.362227,29250.0,29249.0,0.09030024]
[1609481283150,0.00030182,29252.0,29249.0,2.11620989]
[1609481283348,0.46610182,29253.0,29250.0,0.40542806]
[1609481283542,0.46610182,29253.0,29251.0,0.12558706]
[1609481283849,0.46610182,29253.0,29252.0,1.67558206]
[1609481284104,0.4658,29253.0,29252.0,2.02600332]
[1609481284310,0.4658,29253.0,29252.0,2.53810332]
[1609481284493,0.4658,29253.0,29252.0,2.70331332]
[1609481284999,0.4658,29253.0,29252.0,2.71188786]
[1609481286197,0.4658,29253.0,29252.0,1.09667786]
[1609481288297,0.4658,29253.0,29252.0,0.91167786]
[1609481288916,0.4658,29253.0,29252.0,0.8462498]
[1609481289119,0.4658,29253.0,29252.0,0.91167786]
[1609481289319,0.4658,29253.0,29252.0,0.7462566]
[1609481289516,0.4658,29253.0,29252.0,0.68082854]
[1609481293719,0.4658,29253.0,29252.0,0.7462566]
[1609481294539,0.4658,29253.0,29252.0,0.68082854]
[1609481296442,0.4508,29253.0,29252.0,0.68082854]
[1609481296649,0.4408,29253.0,29252.0,0.68082854]
[1609481299159,0.4408,29253.0,29252.0,0.7462566]
[1609481299350,0.4408,29253.0,29252.0,0.58082854]
[1609481301050,0.803027,29253.0,29252.0,0.54552487]
[1609481301976,1.853027,29253.0,29252.0,0.03342487]
[1609481302177,2.128027,29253.0,29252.0,0.03342487]
[1609481302970,3.028027,29253.0,29252.0,0.03342487]
[1609481303379,3.228027,29253.0,29252.0,0.03342487]
[1609481303873,4.16259894,29253.0,29252.0,0.03342487]
[1609481304872,3.228027,29253.0,29252.0,0.03342487]
[1609481306372,4.16259894,29253.0,29252.0,0.03342487]
[1609481306881,4.19606706,29253.0,29252.0,0.03342487]
[1609481307177,4.51687008,29253.0,29252.0,0.03342487]
[1609481307394,5.22620986,29253.0,29252.0,0.03342487]
[1609481307595,5.54701288,29253.0,29252.0,0.03342487]
[1609481307794,5.22620986,29253.0,29252.0,0.03342487]
[1609481308594,5.54701288,29253.0,29252.0,0.03342487]
[1609481309196,5.22620986,29253.0,29252.0,0.03342487]
[1609481311698,3.26149512,29253.0,29252.0,0.03342487]
[1609481312004,3.228027,29253.0,29252.0,0.03342487]
[1609481312805,3.828027,29253.0,29252.0,0.03342487]
[1609481313016,3.86149512,29253.0,29252.0,0.03342487]
[1609481313419,3.828027,29253.0,29252.0,0.03342487]
[1609481314184,3.86149512,29253.0,29252.0,0.03342487]
[1609481316818,3.26149512,29253.0,29252.0,0.03342487]
[1609481317220,3.228027,29253.0,29252.0,0.03342487]
[1609481317721,3.26149512,29253.0,29252.0,0.03342487]
[1609481317919,3.228027,29253.0,29252.0,0.03342487]
[1609481318617,3.778027,29253.0,29252.0,0.03342487]
[1609481320020,3.228027,29253.0,29252.0,0.03342487]
[1609481321626,3.028027,29253.0,29252.0,0.03342487]
[1609481322127,3.228027,29253.0,29252.0,0.03342487]
[1609481325679,3.828027,29253.0,29252.0,0.03342487]
[1609481327303,4.85852109,29253.0,29252.0,0.03342487]
[1609481328502,4.25852109,29253.0,29252.0,0.03342487]
[1609481329752,4.05852109,29253.0,29252.0,0.03342487]
[1609481331048,4.25852109,29253.0,29252.0,0.03342487]
[1609481331250,4.05852109,29253.0,29252.0,0.03342487]
[1609481331454,4.25852109,29253.0,29252.0,0.03342487]
[1609481331649,4.05852109,29253.0,29252.0,0.03342487]
[1609481335989,3.028027,29253.0,29252.0,0.03342487]
[1609481336192,5.34736417,29253.0,29252.0,0.03342487]
[1609481336593,5.61464125,29253.0,29252.0,0.03342487]
[1609481337299,5.29383823,29253.0,29252.0,0.03342487]
[1609481337513,6.14383823,29253.0,29252.0,0.03342487]
[1609481337721,5.94383823,29253.0,29252.0,0.03342487]
[1609481338115,6.14383823,29253.0,29252.0,0.03342487]
[1609481338520,6.14592054,29253.0,29252.0,0.03342487]
[1609481339111,5.49592054,29253.0,29252.0,0.03342487]
[1609481339319,5.49383823,29253.0,29252.0,0.03342487]
[1609481340221,5.4959204,29253.0,29252.0,0.03342487]
[1609481341015,4.56134846,29253.0,29252.0,0.03342487]
[1609481341717,4.55926629,29253.0,29252.0,0.03342487]
[1609481342516,4.35926629,29253.0,29252.0,0.03342487]
[1609481343336,4.52579817,29253.0,29252.0,0.03342487]
[1609481343531,3.49530408,29253.0,29252.0,0.03342487]
[1609481344741,3.228027,29253.0,29252.0,0.03342487]
[1609481345245,3.028027,29253.0,29252.0,0.03342487]
[1609481345648,2.128027,29253.0,29252.0,0.03342487]
[1609481346444,2.123027,29253.0,29252.0,0.03342487]
[1609481347341,3.073027,29253.0,29252.0,0.03342487]
[1609481348244,3.053027,29253.0,29252.0,0.03342487]
[1609481348444,2.103027,29253.0,29252.0,0.03342487]
[1609481350169,2.20413491,29253.0,29252.0,0.03342487]
[1609481350463,2.103027,29253.0,29252.0,0.03342487]
[1609481351562,2.853027,29253.0,29252.0,0.03342487]
[1609481351762,2.103027,29253.0,29252.0,0.03342487]
[1609481352362,2.753027,29253.0,29252.0,0.03342487]
[1609481353267,2.853027,29253.0,29252.0,0.03342487]
[1609481353464,2.103027,29253.0,29252.0,0.03342487]
[1609481354885,2.098027,29253.0,29252.0,0.03342487]
[1609481355787,4.06291738,29253.0,29252.0,0.03342487]
[1609481356094,3.32486356,29253.0,29252.0,0.03342487]
[1609481356388,5.1094355,29253.0,29252.0,0.03342487]
[1609481356887,4.14139544,29253.0,29252.0,0.03342487]
[1609481357184,3.49139544,29253.0,29252.0,0.03342487]
[1609481357988,2.261077,29253.0,29252.0,0.03342487]
[1609481358194,3.048027,29253.0,29252.0,0.03342487]
[1609481359999,5.21291738,29253.0,29252.0,0.03342487]
[1609481360400,4.27834544,29253.0,29252.0,0.03342487]
[1609481362120,3.248027,29253.0,29252.0,0.03342487]
[1609481363021,3.048027,29253.0,29252.0,0.03342487]
[1609481363224,3.043027,29253.0,29252.0,0.15274787]
[1609481365824,3.243027,29253.0,29252.0,0.15274787]
[1609481369745,2.293027,29253.0,29252.0,0.15274787]
[1609481370347,2.093027,29253.0,29252.0,0.15274787]
[1609481371152,5.22343327,29253.0,29252.0,0.15274787]
[1609481371453,4.193027,29253.0,29252.0,0.15274787]
[1609481372254,5.22343327,29253.0,29252.0,0.15274787]
[1609481373369,4.193027,29253.0,29252.0,0.15274787]
[1609481373772,2.293027,29253.0,29252.0,0.15274787]
[1609481374074,3.183027,29253.0,29252.0,0.15274787]
[1609481374622,4.24690139,29253.0,29252.0,0.15274787]
[1609481375018,4.24898388,29253.0,29252.0,0.15274787]
[1609481376516,4.21551576,29253.0,29252.0,0.15274787]
[1609481376917,4.24898388,29253.0,29252.0,0.15274787]
[1609481379731,4.21551576,29253.0,29252.0,0.15274787]
[1609481379933,4.91551576,29253.0,29252.0,0.15274787]
[1609481380136,4.21551576,29253.0,29252.0,0.15274787]
[1609481380334,4.24898388,29253.0,29252.0,0.15274787]
[1609481382436,4.21551576,29253.0,29252.0,0.15274787]